[Event "Israeli Team U18-ch 2022"]
[Site "Be'er Ya'akov"]
[Date "2022.08.16"]
[Round "6.14"]
[White "Gilad, Tomer"]
[Black "Sobel, Alon"]
[Result "1/2-1/2"]
[ECO "B22"]
[WhiteElo "1554"]
[BlackElo "1843"]
[Annotator "NA RC"]
[PlyCount "42"]
[EventDate "2022.08.14"]
[EventCountry "ISR"]
[SourceTitle "playchess.com"]
[Source "ChessBase"]
[SourceQuality "1"]
[TimeControl "3000+10"]

{[%evp 13,42,22,20,12,32767,32767,32767,32767,32767,32767,32767,10,32767,32767,32767,0,17,-18,0,32767,32767,-16,40,36,37,27,37,26,58,54,61]} 1. e4 {[%emt 0:00:01]} c5 {[%emt 0:11:13]} 2. Nf3 {[%emt 0:00:08]} e6 {[%emt 0:00:21]} 3. c3 {[%emt 0:00:08]} d5 {[%emt 0:00:28]} 4. exd5 {[%emt 0:00:07]} exd5 {[%emt 0:00:09]} 5. d4 {[%emt 0:00:06]} cxd4 {[%emt 0:00:17]} 6. Nxd4 {[%emt 0:01:56]} Nf6 {[%emt 0:00:06]} 7. Bf4 {[%emt 0:02:16]} Be7 {[%emt 0:02:43]} 8. Nd2 {[%emt 0:04:24]} O-O {[%emt 0:00:15]} 9. Bd3 {[%emt 0:00:17]} Nc6 {[%emt 0:01:00]} 10. N2b3 {[%emt 0:04:16]} Bd6 {[%emt 0:01:35]} 11. Bxd6 {[%emt 0:02:15]} Re8+ {[%emt 0:00:23]} 12. Be2 {[%emt 0:00:11]} Qxd6 {[%emt 0:00:06]} 13. O-O {[%emt 0:00:37]} a6 {[%emt 0:00:36]} 14. Rc1 {[%emt 0:05:03]} Be6 {[%emt 0:02:57]} 15. f4 {[%emt 0:04:00]} Nxd4 {[%emt 0:00:56]} 16. Nxd4 {[%emt 0:00:20]} Qb6 {[%emt 0:00:16]} 17. Qb3 {[%emt 0:00:40]} Qxb3 {[%emt 0:00:16]} (17... Qc7 $11) 18. axb3 {[%emt 0:00:15]} Bg4 {[%emt 0:05:37]} 19. Bxg4 Nxg4 {[%emt 0:00:01]} 20. Rce1 {[%emt 0:05:41]} Re4 {[%emt 0:04:53]} 21. Rxe4 {[%emt 0:03:06]} dxe4 $14 {[%emt 0:00:37]} 1/2-1/2

[Event "Israeli Team U18-ch 2022"]
[Site "Be'er Ya'akov"]
[Date "2022.08.16"]
[Round "6.16"]
[White "Ben-Gera, Omer"]
[Black "Gavriel, Adam"]
[Result "1-0"]
[ECO "B84"]
[WhiteElo "1304"]
[BlackElo "1409"]
[Annotator "NA RC"]
[PlyCount "83"]
[EventDate "2022.08.14"]
[EventCountry "ISR"]
[SourceTitle "playchess.com"]
[Source "ChessBase"]
[SourceQuality "1"]
[TimeControl "3000+10"]

1. e4 {[%emt 0:00:02]} c5 {[%emt 0:00:10]} 2. Nf3 {[%emt 0:00:10]} e6 {[%emt 0:00:10]} 3. d4 {[%emt 0:00:10]} cxd4 {[%emt 0:00:10]} 4. Nxd4 {[%emt 0:00:10]} a6 {[%emt 0:00:10]} 5. Nc3 {[%emt 0:00:10]} Qc7 {[%emt 0:00:10]} 6. Be2 {[%emt 0:00:10]} Nf6 {[%emt 0:00:10]} 7. O-O {[%emt 0:00:10]} d6 {[%emt 0:00:10]} 8. Kh1 {[%emt 0:01:37]} b5 {[%emt 0:01:02]} 9. a3 {[%emt 0:00:10]} Bb7 {[%emt 0:00:10]} 10. Qd3 {[%emt 0:00:10]} Nbd7 {[%emt 0:00:10]} 11. b4 {[%emt 0:00:10]} Rc8 {[%emt 0:00:10]} 12. Bb2 {[%emt 0:00:10]} Ne5 {[%emt 0:00:10]} 13. Qe3 {[%emt 0:00:10]} g6 {[%emt 0:00:10]} 14. a4 {[%emt 0:00:10]} bxa4 {[%emt 0:00:10]} 15. Rxa4 {[%emt 0:10:35]} Bg7 {[%emt 0:05:58]} 16. f4 {[%emt 0:02:25]} Nc4 {[%emt 0:01:11]} 17. Bxc4 {[%emt 0:00:10]} Qxc4 {[%emt 0:00:10]} 18. Rd1 {[%emt 0:02:52]} Ng4 {[%emt 0:01:55]} 19. Qd2 {[%emt 0:00:10]} e5 {[%emt 0:00:10]} 20. b5 {[%emt 0:00:10]} Qc7 {[%emt 0:00:10]} 21. bxa6 {[%emt 0:02:41]} exd4 {[%emt 0:06:53]} 22. axb7 {[%emt 0:00:10]} Qxb7 {[%emt 0:00:10]} 23. Ba3 {[%emt 0:04:12]} dxc3 {[%emt 0:03:09]} 24. Qe2 {[%emt 0:00:10]} Qd7 {[%emt 0:00:10]} 25. Ra6 {[%emt 0:00:10]} O-O {[%emt 0:00:10]} 26. Rdxd6 {[%emt 0:00:10]} Rb8 {[%emt 0:00:10]} 27. Rxd7 {[%emt 0:00:10]} Rb1+ {[%emt 0:00:10]} 28. Rd1 {[%emt 0:00:10]} Rxd1+ {[%emt 0:00:10]} 29. Qxd1 {[%emt 0:00:10]} Nf2+ {[%emt 0:00:10]} 30. Kg1 {[%emt 0:00:10]} Nxd1 {[%emt 0:00:10]} 31. Bxf8 {[%emt 0:00:10]} Kxf8 {[%emt 0:00:10]} 32. e5 {[%emt 0:11:55]} Ke7 {[%emt 0:06:22]} 33. g3 {[%emt 0:00:10]} f6 {[%emt 0:00:10]} 34. Ra7+ {[%emt 0:00:38]} Kf8 {[%emt 0:00:51]} 35. e6 {[%emt 0:00:10]} f5 {[%emt 0:00:10]} 36. Rf7+ {[%emt 0:00:48]} Kg8 {[%emt 0:00:56]} 37. Rd7 {[%emt 0:00:19]} Kf8 {[%emt 0:04:15]} 38. Rxd1 {[%emt 0:00:07]} Ke7 {[%emt 0:01:09]} 39. Rd7+ {[%emt 0:00:07]} Kf8 {[%emt 0:00:03]} 40. Kf2 {[%emt 0:00:15]} h6 {[%emt 0:00:21]} 41. Ke3 {[%emt 0:00:25]} Bf6 {[%emt 0:00:08]} 42. Rf7+ {[%emt 0:00:10]} 1-0

[Event "Israeli Team U18-ch 2022"]
[Site "Be'er Ya'akov"]
[Date "2022.08.16"]
[Round "6.17"]
[White "Michaeli, Omri"]
[Black "Zakin, Ilay"]
[Result "0-1"]
[ECO "B33"]
[WhiteElo "1896"]
[BlackElo "1672"]
[Annotator "NA RC"]
[PlyCount "84"]
[EventDate "2022.08.14"]
[EventCountry "ISR"]
[SourceTitle "playchess.com"]
[Source "ChessBase"]
[SourceQuality "1"]
[TimeControl "3000+10"]

{[%evp 36,83,25,15,32767,32767,32767,-8,10,-33,-19,-72,-22,-89,-94,-156,-100,-167,-191,-307,-246,-376,32767,32767,-389,-434,-379,-871,-564,-2088,-2538,-29990,-29991,-29991,-29977,-29987,-29979,-29984,-2115,-29988,-29985,32767,-29987,-29987,-29989,-29988,-29989,-29996,-29997,-29999]} 1. e4 {[%emt 0:04:40]} c5 {[%emt 0:00:09]} 2. Nf3 {[%emt 0:00:15]} Nc6 {[%emt 0:00:07]} 3. d4 {[%emt 0:00:06]} cxd4 {[%emt 0:00:06]} 4. Nxd4 {[%emt 0:00:05]} Nf6 {[%emt 0:00:07]} 5. Nc3 {[%emt 0:00:02]} e5 {[%emt 0:00:08]} 6. Ndb5 {[%emt 0:00:01]} d6 {[%emt 0:00:07]} 7. Bg5 {[%emt 0:00:07]} a6 {[%emt 0:00:04]} 8. Na3 {[%emt 0:00:05]} b5 {[%emt 0:00:05]} 9. Nd5 {[%emt 0:00:04]} Be7 {[%emt 0:00:03]} 10. Bxf6 {[%emt 0:00:05]} Bxf6 {[%emt 0:00:04]} 11. c4 {[%emt 0:00:20]} b4 {[%emt 0:00:03]} 12. Nc2 {[%emt 0:00:04]} Rb8 {[%emt 0:00:03]} 13. b3 {[%emt 0:00:09]} O-O {[%emt 0:00:14]} 14. g3 {[%emt 0:00:13]} Bg5 {[%emt 0:00:12]} 15. h4 {[%emt 0:00:33]} Bh6 {[%emt 0:00:05]} 16. Bh3 {[%emt 0:00:03]} Be6 {[%emt 0:00:05]} 17. Kf1 {[%emt 0:01:27]} a5 {[%emt 0:01:37]} 18. Kg2 {[%emt 0:00:21]} Rb7 {[%emt 0:06:16]} 19. Qe2 {[%emt 0:01:59]} Qd7 {[%emt 0:04:41]} 20. g4 {[%emt 0:00:14]} f6 {[%emt 0:04:14]} 21. Rad1 {[%emt 0:00:53]} Ne7 {[%emt 0:06:45]} 22. c5 {[%emt 0:03:33]} (22. Nxe7+ $11 Qxe7 23. Ne3) 22... Bxd5 {[%emt 0:04:11]} 23. exd5 {[%emt 0:00:13]} Ng6 {[%emt 0:00:08]} (23... dxc5 $2 24. g5 Qd6 25. gxh6 $18) 24. Qe4 {[%emt 0:07:38] [#]} (24. Kf1 $11 Nf4 25. g5 Nxe2 26. Bxd7 Rxd7 27. Kxe2 fxg5 28. Rdg1 gxh4 29. Rxh4) 24... Nf4+ $1 {[%emt 0:00:42]} ({Resist} 24... dxc5 25. g5 f5 26. Qc4 $16) 25. Kg3 {[%emt 0:00:12]} ({Better is} 25. Kh2 f5 26. gxf5 Nxh3 27. Kxh3) 25... dxc5 {[%emt 0:03:06]} 26. g5 {[%emt 0:00:21]} Nxh3 {[%emt 0:00:35]} 27. Rxh3 {[%emt 0:00:36]} (27. gxh6 $142 Nf4 28. Ne3) 27... fxg5 {[%emt 0:00:27]} 28. hxg5 {[%emt 0:00:21]} Rf4 {[%emt 0:00:03]} 29. Qe2 {[%emt 0:02:33]} Bxg5 {[%emt 0:01:26]} 30. Ne3 {[%emt 0:02:53]} Rb6 {[%emt 0:06:19]} ({Avoid the trap} 30... Rd4 $2 31. Qh5 Bf4+ 32. Kg2 $19) 31. f3 {[%emt 0:01:43]} (31. Ng2 $142) 31... Rg6 {[%emt 0:03:25]} 32. Ng4 {[%emt 0:02:11]} e4 {[%emt 0:00:54]} ({And not} 32... Rd4 33. Rxd4 exd4 34. Qe4 $19) 33. fxe4 {[%emt 0:01:26] [#]} Rxg4+ $1 {[%emt 0:00:15]} 34. Kf2 {[%emt 0:02:35]} Rf6+ {[%emt 0:00:48]} ({Not} 34... Rxe4 35. Qxe4 Rf6+ 36. Kg2 $11 (36. Rf3 Rd6 $11)) 35. Rf3 {[%emt 0:00:21]} Rxf3+ {[%emt 0:03:25]} 36. Kxf3 {[%emt 0:00:07]} Rf4+ $19 {[%emt 0:00:38]} (36... h5 $142 37. Kf2 Qf7+ 38. Qf3 Rf4 39. Rd3 Qf6 40. d6 Rxf3+ 41. Rxf3 Qxd6 42. Kg2 Qd4 43. e5 Qxe5 44. Rf2 Bh4 45. Kf3 Qf5+ 46. Ke2 Bxf2 47. Kd2 Qf3 48. Kc2 Qe2+ 49. Kc1 Be3+ 50. Kb1 Qd1+ 51. Kb2 Bd4#) 37. Kg3 {[%emt 0:00:04]} Qd6 {[%emt 0:00:33]} 38. e5 {[%emt 0:02:58]} Qg6 {[%emt 0:00:13]} 39. d6 {[%emt 0:02:02]} Bh6+ {[%emt 0:00:02]} 40. Kh3 {[%emt 0:00:06]} Qf5+ {[%emt 0:00:02]} 41. Kg3 {[%emt 0:00:49]} Qg5+ {[%emt 0:00:03]} 42. Kh3 {[%emt 0:00:17]} Rh4# {[%emt 0:00:01]} 0-1

[Event "Israeli Team U18-ch 2022"]
[Site "Be'er Ya'akov"]
[Date "2022.08.16"]
[Round "6.18"]
[White "Linik, Daniel"]
[Black "Shocron, Alon"]
[Result "0-1"]
[ECO "B22"]
[WhiteElo "1476"]
[BlackElo "1895"]
[Annotator "NA RC"]
[PlyCount "51"]
[EventDate "2022.08.14"]
[EventCountry "ISR"]
[SourceTitle "playchess.com"]
[Source "ChessBase"]
[SourceQuality "1"]
[TimeControl "3000+10"]

1. e4 {[%emt 0:00:15]} c5 {[%emt 0:03:16]} 2. c3 {[%emt 0:00:58]} Nf6 {[%emt 0:00:24]} 3. e5 {[%emt 0:01:41]} Nd5 {[%emt 0:00:54]} 4. d4 {[%emt 0:00:51]} cxd4 {[%emt 0:00:28]} 5. cxd4 {[%emt 0:00:04]} d6 {[%emt 0:00:21]} 6. Nf3 {[%emt 0:02:47]} e6 {[%emt 0:03:30]} 7. Bd3 {[%emt 0:05:14]} Nc6 {[%emt 0:01:04]} (7... dxe5 $11 8. dxe5 Nd7) 8. Bg5 {[%emt 0:02:13]} Qb6 {[%emt 0:04:01]} 9. Qd2 {[%emt 0:01:22]} h6 {[%emt 0:01:02]} 10. Be3 {[%emt 0:00:25]} dxe5 {[%emt 0:00:51]} 11. Nxe5 {[%emt 0:01:49]} Nxe5 {[%emt 0:00:54]} 12. dxe5 {[%emt 0:00:13]} Nxe3 {[%emt 0:00:04]} 13. fxe3 {[%emt 0:00:21]} Bc5 {[%emt 0:00:10]} 14. Ke2 {[%emt 0:00:20]} Bd7 {[%emt 0:00:55]} 15. Nc3 {[%emt 0:00:56]} Rd8 {[%emt 0:02:33]} 16. Ne4 {[%emt 0:05:53]} Bb5 {[%emt 0:00:55]} 17. Nf2 {[%emt 0:00:00]} O-O {[%emt 0:03:47]} 18. b4 $2 {[%emt 0:01:11] [#]} (18. a4 {only move.} Bc6 19. a5) 18... Bxb4 $1 {[%emt 0:01:32]} 19. Qb2 {[%emt 0:08:02]} (19. Qc2 $142 Rc8 20. Qb2 Bxd3+ 21. Nxd3) 19... Bxd3+ {[%emt 0:02:22]} 20. Nxd3 {[%emt 0:00:13] [#]} Rxd3 $1 {[%emt 0:00:26]} 21. Kxd3 $19 {[%emt 0:18:37]} Rd8+ {[%emt 0:00:12]} 22. Ke4 {[%emt 0:00:01]} Qc6+ {[%emt 0:01:08]} 23. Kf4 {[%emt 0:00:22]} Rd2 {[%emt 0:00:57]} 24. Qxd2 {[%emt 0:00:11]} Bxd2 {[%emt 0:00:08]} 25. Kg3 {[%emt 0:00:10]} Qe4 {[%emt 0:00:43]} 26. h3 {[%emt 0:00:21]} 0-1

[Event "Israeli Team U18-ch 2022"]
[Site "Be'er Ya'akov"]
[Date "2022.08.16"]
[Round "6.19"]
[White "Kabakov, Iddo"]
[Black "Arian, Tal"]
[Result "1/2-1/2"]
[ECO "D78"]
[WhiteElo "1592"]
[BlackElo "1258"]
[Annotator "NA RC"]
[PlyCount "26"]
[EventDate "2022.08.14"]
[EventCountry "ISR"]
[SourceTitle "playchess.com"]
[Source "ChessBase"]
[SourceQuality "1"]
[TimeControl "3000+10"]

1. d4 {[%emt 0:03:24]} c6 {[%emt 0:00:02]} 2. c4 {[%emt 0:00:07]} d5 {[%emt 0:00:01]} 3. Nf3 {[%emt 0:00:07]} Nf6 {[%emt 0:00:15]} 4. g3 {[%emt 0:00:06]} g6 {[%emt 0:01:13]} 5. Bg2 {[%emt 0:00:07]} Bg7 {[%emt 0:00:47]} 6. O-O {[%emt 0:00:06]} O-O {[%emt 0:00:08]} 7. Nc3 {[%emt 0:03:47]} Nbd7 {[%emt 0:02:35]} 8. b3 {[%emt 0:05:31]} dxc4 {[%emt 0:07:25]} 9. bxc4 {[%emt 0:00:02]} c5 {[%emt 0:01:23]} 10. Rb1 {[%emt 0:07:58]} Qa5 {[%emt 0:06:36]} 11. Bd2 {[%emt 0:03:07]} cxd4 {[%emt 0:03:44]} 12. Nxd4 {[%emt 0:08:22]} Qc5 {[%emt 0:12:01]} 13. e3 {[%emt 0:05:50]} Qxc4 {[%emt 0:01:57]} 1/2-1/2

[Event "Israeli Team U18-ch 2022"]
[Site "Be'er Ya'akov"]
[Date "2022.08.16"]
[Round "6.20"]
[White "Mizrahi, Omer"]
[Black "Sade, Elad"]
[Result "0-1"]
[ECO "D02"]
[WhiteElo "1438"]
[BlackElo "1359"]
[Annotator "NA RC"]
[PlyCount "87"]
[EventDate "2022.08.14"]
[EventCountry "ISR"]
[SourceTitle "playchess.com"]
[Source "ChessBase"]
[SourceQuality "1"]
[TimeControl "3000+10"]

1. d4 {[%emt 0:50:20]} e6 2. Nf3 {[%emt 0:00:00]} d5 {[%emt 0:00:07]} 3. Bf4 {[%emt 0:00:00]} Nf6 {[%emt 0:01:07]} 4. e3 {[%emt 0:00:00]} c5 {[%emt 0:00:41]} 5. c3 {[%emt 0:00:00]} Nc6 {[%emt 0:00:28]} 6. Nbd2 {[%emt 0:00:00]} Be7 {[%emt 0:01:07]} 7. h3 {[%emt 0:00:00]} O-O {[%emt 0:00:58]} 8. Bd3 {[%emt 0:00:00]} Bd7 {[%emt 0:01:12]} 9. O-O {[%emt 0:00:00]} h6 {[%emt 0:00:59]} 10. Re1 {[%emt 0:00:00]} Re8 {[%emt 0:00:37]} 11. Qe2 {[%emt 0:00:00]} a6 {[%emt 0:01:07]} 12. dxc5 {[%emt 0:00:00]} Bxc5 {[%emt 0:01:10]} 13. Bc2 {[%emt 0:00:00]} e5 {[%emt 0:01:36]} 14. Bh2 {[%emt 0:00:00]} e4 {[%emt 0:01:33]} 15. Nd4 {[%emt 0:00:00]} Nxd4 {[%emt 0:00:56]} 16. cxd4 {[%emt 0:00:00]} Bb4 {[%emt 0:01:21]} 17. Rec1 {[%emt 0:00:00]} Rc8 {[%emt 0:00:43]} 18. a3 {[%emt 0:00:00]} Ba5 {[%emt 0:01:03]} 19. b4 {[%emt 0:00:00]} Bb5 {[%emt 0:01:12]} 20. Qd1 {[%emt 0:00:00]} Bc7 {[%emt 0:00:53]} 21. Ba4 {[%emt 0:00:00]} Bxh2+ 22. Kxh2 {[%emt 0:00:00]} Qd7 {[%emt 0:02:29]} 23. Bxb5 {[%emt 0:00:00]} Qxb5 {[%emt 0:00:45]} 24. Nb3 {[%emt 0:00:00]} Nd7 {[%emt 0:01:47]} 25. Qd2 {[%emt 0:04:00]} Nb6 {[%emt 0:06:01]} 26. Nc5 {[%emt 0:00:00]} Nc4 {[%emt 0:00:27]} 27. Qd1 {[%emt 0:00:00]} b6 {[%emt 0:03:47]} 28. Nb3 {[%emt 0:00:00]} Rc7 {[%emt 0:04:25]} 29. Rc3 {[%emt 0:00:00]} Rec8 {[%emt 0:04:16]} 30. Qc1 {[%emt 0:00:50]} Qd7 {[%emt 0:01:02]} 31. Ra2 {[%emt 0:00:00]} Na5 {[%emt 0:04:42]} 32. Rac2 {[%emt 0:00:00]} Rxc3 {[%emt 0:01:29]} 33. Rxc3 {[%emt 0:00:00]} Rxc3 {[%emt 0:00:12]} 34. Qxc3 {[%emt 0:00:00]} Nxb3 {[%emt 0:00:11]} 35. Qxb3 {[%emt 0:00:00]} Qc7+ {[%emt 0:00:27]} 36. g3 {[%emt 0:00:00]} Qc4 {[%emt 0:00:38]} 37. Qb2 {[%emt 0:00:00]} Qf1 {[%emt 0:00:31]} 38. Qc2 {[%emt 0:00:00]} Kh7 {[%emt 0:00:04]} 39. Qb2 {[%emt 0:00:00]} g5 {[%emt 0:00:35]} 40. Qc2 {[%emt 0:00:00]} h5 {[%emt 0:00:29]} 41. Qd2 {[%emt 0:00:54]} Kg6 {[%emt 0:01:17]} 42. g4 {[%emt 0:00:42]} hxg4 {[%emt 0:00:32]} 43. hxg4 {[%emt 0:00:03]} f5 {[%emt 0:00:41]} 44. gxf5+ {[%emt 0:00:41]} 0-1

[Event "Israeli Team U18-ch 2022"]
[Site "Be'er Ya'akov"]
[Date "2022.08.16"]
[Round "7.1"]
[White "Levin, Guy"]
[Black "Levi, Yaniv"]
[Result "1-0"]
[ECO "A04"]
[WhiteElo "2363"]
[BlackElo "1499"]
[Annotator "TA"]
[PlyCount "71"]
[EventDate "2022.08.14"]
[EventCountry "ISR"]
[SourceTitle "playchess.com"]
[Source "ChessBase"]
[SourceQuality "1"]
[TimeControl "3000+10"]

{[%evp 9,71,31,36,14,41,41,41,27,28,26,25,17,25,16,11,0,18,11,40,0,0,-47,14,-2,0,-8,41,42,68,66,92,100,125,64,58,59,179,166,275,209,303,255,712,712,966,936,1626,1600,2438,2422,2479,2352,2204,2102,5310,5310,5310,5293,5289,5265,3485,2510,2065,766]} 1. Nf3 {[%emt 0:00:07]} b6 {[%emt 0:00:18]} 2. g3 {[%emt 0:01:07]} Bb7 {[%emt 0:00:08]} 3. Bg2 {[%emt 0:00:04]} e5 {[%emt 0:00:07]} 4. d3 {[%emt 0:00:07]} d6 {[%emt 0:00:06]} 5. O-O {[%emt 0:00:08]} Nf6 {[%emt 0:00:47]} 6. e4 {[%emt 0:00:19] A04: Unusual lines after 1 Nf3 and King's Indian Attack.} Nc6 {[%emt 0:00:28]} 7. Nc3 {[%emt 0:00:21]} g6 {[%emt 0:00:24]} 8. Bg5 {[%emt 0:00:20] [#] White is slightly better.} h6 $146 {[%emt 0:00:17]} ({Predecessor:} 8... Bg7 9. Nd5 O-O 10. Nxf6+ Bxf6 11. Bh6 Re8 12. Qd2 d5 13. Ng5 d4 14. c3 a5 {0-1 (29) Heieck,J-Boetzer,F freechess.de 2016}) 9. Bxf6 {[%emt 0:01:26]} Qxf6 {[%emt 0:00:01]} 10. Nd5 {[%emt 0:11:16]} Qd8 {[%emt 0:00:01]} 11. d4 {[%emt 0:02:06]} Bg7 {[%emt 0:04:09][%cal Rc6d4]} 12. dxe5 {[%emt 0:01:13]} dxe5 {[%emt 0:02:09]} 13. c3 {[%emt 0:00:54][%cal Bc2c3,Bc3c4][%mdl 32]} Ne7 {[%emt 0:01:40][%cal Re7d5]} 14. c4 {[%emt 0:13:20]} O-O {[%emt 0:08:48]} 15. Qc2 {[%emt 0:01:12]} (15. Rc1 $11) 15... c6 {[%emt 0:00:41]} (15... Nxd5 $15 16. exd5 f5) 16. Nc3 {[%emt 0:01:30][%cal Bd5c3,Bc3a4,Ba4c5][%mdl 32]} Bc8 {[%emt 0:01:15]} 17. c5 {[%emt 0:00:56]} bxc5 {[%emt 0:03:33]} (17... Be6 $11) 18. Na4 {[%emt 0:00:15]} Rb8 {[%emt 0:02:14][%cal Oc5c4]} 19. Nxc5 {[%emt 0:00:23]} f5 {[%emt 0:01:32]} 20. Rad1 {[%emt 0:01:37]} Qe8 {[%emt 0:02:08]} 21. Rd6 {[%emt 0:02:06] 0x0.001f2557aaafdp-1022s more active pieces. The black rooks are badly placed.} (21. Nd2 $16) 21... fxe4 $14 {[%emt 0:03:04]} 22. Nxe4 {[%emt 0:01:44]} Ba6 {[%emt 0:01:07] [#]} (22... Nf5 $14) 23. Re1 $1 $18 {[%emt 0:01:25]} Nd5 {[%emt 0:04:53]} (23... Rd8 {was worth a try.} 24. Rxd8 Qxd8) 24. a3 {[%emt 0:04:22] Hoping for Nc5.} ({Don't do} 24. Qxc6 $6 Qxc6 25. Rxc6 Rb6 26. Rxb6 Nxb6 $16) 24... Rb6 {[%emt 0:01:49]} (24... Bc8 $142 25. b4 (25. Qxc6 Qxc6 26. Rxc6 Rxb2 $16) 25... Rb6) 25. b4 {[%emt 0:00:47] Nh4 is the strong threat.} Kh8 $2 {[%emt 0:01:10]} (25... Bc8 26. Nfd2 Bf5) 26. Nh4 {[%emt 0:00:41] White is clearly winning.} Kh7 {[%emt 0:04:48]} 27. Nxg6 {[%emt 0:00:17]} Rf5 {[%emt 0:03:45]} 28. Nh4 {[%emt 0:00:20] Pair of Knights!} Bc8 {[%emt 0:00:18]} 29. Nxf5 {[%emt 0:00:15]} Bxf5 {[%emt 0:00:28] [#]} 30. Ng5+ $1 {[%emt 0:00:11][%mdl 512]} hxg5 {[%emt 0:00:14]} 31. Qxf5+ {[%emt 0:00:04]} Kh8 {[%emt 0:00:47]} 32. Qxg5 {[%emt 0:00:55] White threatens Rd8 and mate.} Rb8 {[%emt 0:00:30] Inhibits Rd8.} 33. Bxd5 {[%emt 0:00:21]} cxd5 {[%emt 0:00:08]} 34. Rxd5 {[%emt 0:00:06]} Rc8 {[%emt 0:00:26]} 35. Rdxe5 {[%emt 0:00:25]} Bxe5 {[%emt 0:00:09]} 36. Qxe5+ {[%emt 0:00:08] Weighted Error Value: White=0.19 (very precise) /Black=0.40} (36. Rxe5 $142 Rc1+ 37. Kg2 Qc6+ 38. Rd5) 1-0

[Event "Israeli Team U18-ch 2022"]
[Site "Be'er Ya'akov"]
[Date "2022.08.16"]
[Round "7.2"]
[White "Gilad, Tomer"]
[Black "Kochavi, Ori"]
[Result "0-1"]
[ECO "B10"]
[WhiteElo "1554"]
[BlackElo "2364"]
[Annotator "TA"]
[PlyCount "86"]
[EventDate "2022.08.14"]
[EventCountry "ISR"]
[SourceTitle "playchess.com"]
[Source "ChessBase"]
[SourceQuality "1"]
[TimeControl "3000+10"]

{[%evp 14,86,0,0,0,0,0,0,0,0,3,0,0,4,7,-3,18,13,9,-78,52,0,0,0,62,45,60,0,0,-29,-30,-52,61,81,301,-10,-16,-13,-19,-29,-18,-93,-94,-197,-189,-211,-165,-422,-412,-552,-360,-414,-375,-406,-389,-370,-227,-226,-212,-218,-206,-162,-178,-272,-263,-5202,-5189,-5134,-5122,-1161,-1155,-5122,-5122,-2310,-1320]} 1. e4 {[%emt 0:00:02]} c6 {[%emt 0:00:08]} 2. c4 {[%emt 0:00:06]} d5 {[%emt 0:00:06]} 3. exd5 {[%emt 0:00:05]} cxd5 {[%emt 0:00:02]} 4. cxd5 {[%emt 0:00:07]} Nf6 {[%emt 0:00:04]} 5. Bb5+ {[%emt 0:00:09]} Nbd7 {[%emt 0:00:09]} 6. Nc3 {[%emt 0:00:13]} a6 {[%emt 0:00:39] 6...g6 gains popularity.} 7. Be2 {[%emt 0:00:06]} Nb6 {[%emt 0:02:06]} 8. Nf3 {[%emt 0:00:09]} g6 {[%emt 0:00:28] B10: Caro-Kann: 2 d3 and 2 c4.} 9. O-O {[%emt 0:00:18]} Bg7 {[%emt 0:00:03]} 10. d4 {[%emt 0:00:25]} O-O {[%emt 0:00:19] The position is equal.} 11. Ne5 {[%emt 0:00:30]} Nfxd5 {[%emt 0:01:32]} 12. Bf3 {[%emt 0:01:00]} Be6 {[%emt 0:01:21]} 13. Ne4 {[%emt 0:01:56]} Rc8 {[%emt 0:03:40]} 14. Nc5 {[%emt 0:01:03]} Bxe5 {[%emt 0:00:16]} (14... Qd6 {looks sharper.} 15. Nxe6 Qxe6 16. Bg4 f5) 15. Nxe6 {[%emt 0:01:36]} Bxh2+ {[%emt 0:00:12] [#]} 16. Kxh2 $146 {[%emt 0:00:14] [#]} (16. Kh1 $1 $11 {remains equal.} fxe6 17. Kxh2) ({Predecessor:} 16. Kh1 fxe6 17. Kxh2 Qc7+ 18. g3 Qc2 19. Kg2 Qxd1 20. Bxd1 Nb4 21. Bg4 Rc6 22. Bh6 {0-1 (49) Shaw,J (2380)-Grant,J (2275) Largs 1998}) 16... fxe6 {[%emt 0:06:57]} (16... Qd6+ $1 $17 17. Kg1 Qxe6) 17. Bg4 {[%emt 0:05:19]} ({White should play} 17. Bh6 $14) 17... Qd6+ $11 {[%emt 0:00:19]} 18. Kg1 {[%emt 0:01:41]} Rc6 {[%emt 0:06:04]} (18... Nf6 $11) 19. Re1 {[%emt 0:02:47][%mdl 1024] White has compensation.} Nc7 {[%emt 0:00:07]} 20. b3 {[%emt 0:13:54]} (20. Bh6 $14) 20... Nbd5 {[%emt 0:00:52]} 21. Re5 {[%emt 0:01:11]} Nc3 {[%emt 0:05:31]} 22. Qd2 {[%emt 0:00:24]} N3b5 {[%emt 0:03:01]} ({Black should try} 22... Rd8 $1 $15) 23. Bb2 $14 {[%emt 0:02:05] A strong pair of Bishops.} Rd8 $2 {[%emt 0:00:57] [#]} (23... Na3 $16) 24. Rd1 $2 {[%emt 0:04:28] [#]} (24. d5 $1 $18 Nxd5 25. Bxe6+ Qxe6 26. Rxe6 Rxe6 27. a4) 24... Qxe5 $1 $11 {[%emt 0:03:17]} 25. dxe5 {[%emt 0:00:32]} Rxd2 {[%emt 0:00:02]} 26. Rxd2 {[%emt 0:00:12]} Nc3 {[%emt 0:02:31]} 27. Rc2 {[%emt 0:06:31]} (27. a3 $11) 27... Nxa2 $17 {[%emt 0:01:05] Black continues to play with concentration.} 28. Rd2 {[%emt 0:07:47]} (28. Rxc6 $17 bxc6 29. f4) 28... Nb4 {[%emt 0:00:34]} 29. Rd7 {[%emt 0:00:00]} Kf7 {[%emt 0:01:33]} 30. Ba3 $2 {[%emt 0:00:00]} (30. Bf3 {is a better defense.} Rc2 31. Ba3) 30... Nbd5 $19 {[%emt 0:01:01]} 31. Rd8 {[%emt 0:00:00]} b5 {[%emt 0:00:28]} 32. Rh8 {[%emt 0:00:00]} Kg7 {[%emt 0:00:07]} 33. Rc8 {[%emt 0:00:00]} Rc3 {[%emt 0:00:49]} 34. Bd6 {[%emt 0:01:00]} a5 {[%emt 0:03:32] Against b4. And now ...Kf7 would win.} ({Weaker is} 34... exd6 35. exd6 Nb6 36. Rxc7+ Rxc7 37. dxc7 $17) 35. Bxc7 {[%emt 0:00:00]} Nxc7 {[%emt 0:01:21]} ({Don't go for} 35... Rxc7 $2 36. Ra8) 36. Bxe6 {[%emt 0:00:00][%mdl 4096] Endgame KRB-KRN} a4 {[%emt 0:01:48]} 37. bxa4 {[%emt 0:00:00]} bxa4 {[%emt 0:00:02][%cal Bb5a4,Ba4a3][%mdl 32]} 38. Rg8+ {[%emt 0:00:00]} (38. Kh2 {keeps fighting.}) 38... Kh6 {[%emt 0:00:02]} 39. Bd7 $2 {[%emt 0:00:10]} (39. Ba2) 39... a3 {[%emt 0:00:11] Black is clearly winning.} 40. Be6 {[%emt 0:00:37]} Nxe6 {[%emt 0:00:03]} 41. Ra8 {[%emt 0:00:02]} Nd4 {[%emt 0:00:42] White must now prevent ...Nb5.} 42. Ra4 {[%emt 0:00:19]} Nb5 {[%emt 0:00:07]} 43. Kh2 {[%emt 0:00:09]} Rc2 {[%emt 0:00:04] Weighted Error Value: White=0.80/Black=0.36} 0-1